bitfinex/quotes_ETHUSD_20260130
["timestamp","ask_amount","ask_price","bid_price","bid_amount"]
[1769759032284,0.32319318,2733.7,2732.3,3.71014539]
[1769759032285,3.63577505,2733.3,2732.3,3.71014539]
[1769759033703,0.50972756,2733.2,2732.4,0.767]
[1769759034486,0.50972756,2733.2,2732.3,3.71014539]
[1769759034487,4.14550261,2733.2,2732.3,3.71014539]
[1769759034686,3.63577505,2733.2,2732.4,0.767]
[1769759034885,3.63577505,2733.0,2732.4,0.767]
[1769759035418,3.63577505,2733.0,2732.3,0.767]
[1769759035612,4.14550261,2733.0,2732.3,0.767]
[1769759036122,3.63577505,2733.0,2732.3,0.767]
[1769759036288,3.63577505,2733.0,2732.5,0.002]
[1769759037624,0.001,2733.1,2732.5,0.002]
[1769759039120,0.001,2733.1,2732.5,0.45011454]
[1769759040722,0.001,2733.1,2732.5,4.16025993]
[1769759041709,3.63577505,2734.0,2732.8,3.71014539]
[1769759042823,3.63577505,2734.0,2732.5,0.45011454]
[1769759042824,3.63577505,2734.0,2732.9,0.767]
[1769759043016,3.63577505,2733.8,2732.9,0.767]
[1769759045227,3.63577505,2733.8,2732.7,3.71014539]
[1769759045526,3.63577505,2733.8,2732.8,0.767]
[1769759046725,3.63577505,2733.8,2732.7,3.71014539]
[1769759046927,3.63577505,2733.8,2732.9,0.767]
[1769759047232,4.41147078,2733.8,2732.5,0.45011454]
[1769759047533,3.48723368,2733.6,2732.5,1.21711454]
[1769759048433,3.48723368,2733.6,2732.6,3.45451764]
[1769759049326,0.001,2733.4,2732.6,3.45451764]
[1769759049498,3.48823368,2733.4,2732.5,1.21711454]
[1769759049693,3.83705705,2733.4,2732.5,1.21711454]
[1769759050332,3.48823368,2733.4,2732.5,1.21711454]
[1769759050709,3.48823368,2733.4,2732.5,4.67163218]
[1769759050907,3.48823368,2733.4,2732.6,0.767]
[1769759051306,3.48823368,2733.4,2732.5,0.45011454]
[1769759051508,3.48823368,2733.4,2732.5,0.002]
[1769759052844,0.001,2733.4,2732.5,10.04649946]
[1769759053406,0.001,2733.4,2732.6,3.45451764]
[1769759053813,3.48823368,2733.4,2732.5,0.002]
[1769759054031,3.83705705,2733.4,2732.5,0.002]
[1769759056932,3.48723368,2733.2,2732.5,0.002]
[1769759057320,0.34982337,2733.4,2732.5,0.002]
[1769759057321,3.48723368,2733.0,2732.5,0.002]
[1769759059427,3.48723368,2733.3,2732.5,0.002]
[1769759060847,3.48723368,2733.3,2732.7,0.002]
[1769759061044,3.48723368,2733.3,2732.5,0.002]
[1769759061546,3.48723368,2733.3,2732.3,0.002]
[1769759061754,3.48723368,2733.1,2732.3,0.002]
[1769759069452,3.48723368,2733.1,2732.1,0.002]
[1769759070165,3.95074296,2733.1,2732.1,0.002]
[1769759070581,3.95074296,2733.0,2731.9,0.002]
[1769759070781,3.97378007,2732.9,2731.9,0.002]
[1769759072589,3.97378007,2732.9,2732.3,0.002]
[1769759072784,3.97478007,2732.9,2732.3,0.002]
[1769759079292,3.97478007,2732.9,2731.5,3.21198411]
[1769759082110,0.48754639,2732.9,2731.5,3.21198411]
[1769759082393,0.48754639,2732.9,2731.7,3.21198411]
[1769759082394,0.001,2732.9,2731.7,3.21198411]
[1769759082582,3.44327177,2732.9,2731.7,3.21198411]
[1769759082789,3.44327177,2732.9,2731.7,3.97898411]
[1769759083772,3.44327177,2732.9,2731.7,3.21198411]
[1769759084801,3.44327177,2732.9,2731.7,3.21398411]
[1769759085002,3.44327177,2732.9,2731.9,3.21198411]
[1769759085407,3.44327177,2732.7,2731.8,0.43023825]
[1769759085615,3.44327177,2732.7,2731.8,3.64222236]
[1769759086998,0.001,2732.7,2731.8,3.64222236]
[1769759090411,0.001,2732.7,2732.0,3.21198411]
[1769759090626,0.001,2732.7,2732.2,3.21198411]
[1769759092518,2.5,2732.5,2732.2,3.21198411]
[1769759092726,0.70598145,2732.5,2732.3,3.21198411]
[1769759097735,0.001,2732.7,2732.4,3.21198411]
[1769759100468,0.001,2733.4,2732.6,3.21198411]
[1769759100756,3.44027177,2733.5,2732.7,0.32119841]
[1769759101424,3.44027177,2733.5,2732.7,1.08819841]
[1769759101618,3.44027177,2733.5,2732.7,4.30018252]
[1769759102574,3.44027177,2733.5,2732.7,3.53318252]
[1769759102747,0.43378486,2734.0,2732.7,3.53318252]
[1769759102748,3.44227177,2733.9,2732.7,3.53318252]
[1769759103059,3.44227177,2734.2,2733.3,3.21198411]
[1769759103221,6.42,2735.3,2733.5,3.21198411]
[1769759103222,3.44227177,2734.6,2733.5,3.21198411]
[1769759103622,6.42,2735.3,2733.5,3.21198411]
[1769759103623,3.44227177,2734.9,2733.5,3.21198411]
[1769759103956,3.44227177,2734.9,2733.8,3.21198411]
[1769759104474,3.44227177,2734.9,2733.6,1.05716883]
[1769759104620,3.44227177,2734.7,2733.2,0.767]
[1769759104825,3.44227177,2734.7,2733.2,3.97898411]
[1769759105349,3.44227177,2734.5,2733.1,0.767]
[1769759105548,3.44227177,2734.3,2733.1,0.767]
[1769759106063,3.44227177,2734.1,2732.3,0.002]
[1769759106364,3.41082652,2733.5,2732.3,0.002]
[1769759107267,0.1024,2733.8,2731.7,3.3066276]
[1769759107268,3.41082652,2733.1,2731.7,0.002]
[1769759107552,3.41082652,2732.9,2731.7,0.002]
[1769759108070,3.51322652,2732.8,2731.5,0.002]
[1769759108230,3.41082652,2732.7,2731.5,0.002]
[1769759108427,3.41082652,2732.7,2731.4,0.002]
[1769759109828,3.41082652,2732.7,2731.9,0.002]
[1769759110056,3.75190917,2732.6,2731.9,0.002]
[1769759111024,3.75190917,2732.6,2731.4,0.002]
[1769759111226,3.41082652,2732.2,2731.2,0.002]
[1769759114652,3.41082652,2732.1,2731.1,0.002]
[1769759114957,3.41082652,2731.9,2731.1,0.002]
[1769759116330,3.41082652,2731.9,2730.8,0.002]
[1769759117278,3.41082652,2731.7,2730.6,0.002]
[1769759118473,3.75190917,2732.0,2730.6,3.3066276]
[1769759118633,3.41082652,2732.0,2730.6,3.3066276]
[1769759119342,3.41082652,2732.6,2730.6,3.3066276]
[1769759120453,0.001,2732.7,2730.8,3.3046276]
[1769759121072,3.41182652,2732.7,2730.8,3.3046276]
[1769759121373,3.41182652,2732.7,2731.0,3.3046276]
[1769759122475,0.001,2732.7,2731.1,3.3046276]
[1769759122646,0.001,2732.7,2731.3,3.3046276]
[1769759123791,0.001,2732.7,2731.5,3.3046276]
[1769759123946,0.001,2732.7,2731.7,3.3046276]
[1769759124562,0.001,2732.7,2731.9,3.3046276]
[1769759124887,0.001,2732.7,2731.8,14.5]
[1769759125183,0.001,2732.7,2731.8,0.768]
[1769759125752,0.001,2732.7,2731.6,3.3046276]
[1769759125953,3.75300917,2732.7,2731.7,0.33046276]
[1769759126274,3.75300917,2732.7,2731.4,0.767]
[1769759126275,3.75300917,2732.7,2731.4,4.0716276]
[1769759127080,3.41182652,2732.7,2731.4,4.0716276]
[1769759127282,3.41182652,2732.7,2730.9,3.63509036]
[1769759127481,3.41182652,2732.7,2731.0,4.0716276]
[1769759127683,3.41182652,2732.7,2731.1,0.767]
[1769759128380,3.41182652,2732.7,2731.2,3.3046276]
[1769759128684,3.75200917,2732.6,2731.3,0.40716276]
[1769759129564,0.34118265,2732.6,2731.3,3.71179036]
[1769759129763,0.001,2732.7,2731.3,3.71179036]
[1769759131000,0.001,2732.7,2731.5,3.3046276]
[1769759133288,0.001,2732.7,2731.7,3.3046276]
[1769759134969,0.001,2732.5,2731.7,3.3046276]
[1769759137470,6.42,2733.4,2731.9,3.27554409]
[1769759137674,3.1482292,2733.6,2732.1,3.27554409]
[1769759137675,3.1452292,2733.5,2732.1,3.27554409]
[1769759137869,3.1452292,2733.5,2732.0,1.09455441]
[1769759138080,3.1452292,2733.5,2732.0,0.32755441]
[1769759138396,3.1452292,2733.5,2731.9,0.767]
[1769759139103,3.1482292,2733.1,2731.3,3.68270685]
[1769759139272,3.1482292,2733.0,2731.3,4.04254409]
[1769759142694,3.1482292,2732.9,2731.2,4.04254409]
[1769759143791,3.1482292,2732.9,2731.1,0.767]
[1769759144177,3.1482292,2732.9,2731.1,4.04254409]
[1769759144389,3.1482292,2732.7,2731.2,0.40425441]
[1769759145295,3.2506292,2732.6,2730.6,0.002]
[1769759145598,3.1482292,2732.2,2730.6,0.002]
[1769759146479,3.1482292,2732.2,2731.0,0.002]
[1769759146675,3.1482292,2732.0,2731.0,0.002]
[1769759146874,0.31482292,2732.1,2731.0,3.27754409]
[1769759147074,3.1482292,2732.3,2731.0,3.27754409]
[1769759148499,3.1482292,2732.3,2731.0,0.002]
[1769759150204,3.1482292,2732.3,2731.0,3.27754409]
[1769759150388,3.1482292,2732.7,2731.0,3.27754409]
[1769759158083,3.1482292,2732.7,2731.3,3.27554409]
[1769759162399,6.42,2733.2,2731.4,3.27554409]
[1769759162600,3.1482292,2733.4,2731.4,3.27554409]
[1769759164492,3.1482292,2733.4,2731.6,3.27554409]
[1769759164693,3.1482292,2733.4,2731.8,3.27554409]
[1769759165020,3.1482292,2733.4,2731.7,0.41907921]
[1769759165390,3.1482292,2733.2,2731.7,0.41907921]
[1769759165619,3.1482292,2733.2,2731.5,3.27554409]
[1769759169234,3.1482292,2733.2,2731.5,4.04254409]
[1769759170237,3.1482292,2733.2,2731.5,3.27554409]
[1769759170423,3.1482292,2733.2,2731.6,3.21026064]
[1769759182229,3.00725575,2733.5,2731.7,3.20826064]
[1769759182434,3.00725575,2733.5,2731.9,3.20826064]
[1769759184034,3.00725575,2733.5,2732.0,0.767]
[1769759184336,3.00725575,2733.5,2732.1,3.20826064]
[1769759185662,3.00725575,2733.5,2731.8,0.41254679]
[1769759185663,3.00725575,2733.5,2732.0,0.767]
[1769759185956,3.00725575,2733.5,2732.0,3.97526064]
[1769759186147,3.00725575,2733.3,2732.1,3.6057867]
[1769759186521,0.33813023,2733.4,2732.1,3.6057867]
[1769759186774,3.38130232,2733.6,2732.1,3.6057867]
[1769759190468,0.37404657,2733.6,2732.2,3.20826064]
[1769759190866,3.00725575,2733.9,2732.2,3.20826064]
[1769759191047,3.00725575,2733.9,2732.3,0.767]
[1769759191243,3.00725575,2733.9,2732.4,3.20826064]
[1769759191562,3.00725575,2733.9,2732.6,3.20826064]
[1769759197595,2.97509701,2734.2,2732.6,3.20826064]
[1769759197876,1.14761366,2735.2,2732.6,3.20826064]
[1769759198053,14.04018698,2735.4,2732.7,3.02230489]
[1769759198054,2.97509701,2735.1,2732.7,3.02230489]
[1769759198255,2.97509701,2734.9,2732.9,3.02230489]
[1769759199748,2.97509701,2734.9,2733.0,0.767]
[1769759199966,0.1024,2734.8,2732.9,3.02230489]
[1769759200168,2.97509701,2734.7,2732.9,3.02230489]
[1769759201676,2.97509701,2734.6,2732.8,0.39371757]
[1769759201976,3.36402349,2734.6,2732.5,3.02230489]
[1769759205570,3.36402349,2734.6,2732.6,14.5]
[1769759205760,3.36402349,2734.6,2732.7,3.02230489]
[1769759206199,2.97509701,2734.3,2732.7,3.02230489]
[1769759206398,2.97509701,2734.1,2732.9,3.02230489]
[1769759207553,2.97609701,2734.4,2732.9,3.02230489]
[1769759209294,2.97609701,2734.4,2733.0,3.02230489]
[1769759210086,2.97609701,2734.4,2732.9,14.5]
[1769759210289,2.97509701,2734.2,2732.8,3.78930489]
[1769759211199,2.97509701,2734.2,2732.9,3.02230489]
[1769759213588,2.97509701,2734.2,2732.6,3.02430489]
[1769759216098,2.97509701,2734.2,2732.6,3.79130489]
[1769759216301,2.97509701,2734.2,2732.6,0.769]
[1769759216599,2.97509701,2734.0,2732.6,0.769]
[1769759216824,2.97509701,2734.0,2732.6,3.79130489]
[1769759218702,2.97509701,2734.0,2732.6,3.02430489]
[1769759220219,2.97509701,2734.0,2732.8,0.002]
[1769759227889,0.32727067,2734.1,2732.8,2.83424499]
[1769759228087,3.13800499,2734.1,2733.0,2.83224499]
[1769759228292,3.13800499,2734.1,2732.8,0.002]
[1769759228494,2.81073432,2734.0,2732.8,0.002]
[1769759229002,3.725156,2734.0,2732.8,0.002]
[1769759229358,2.81073432,2733.7,2732.6,0.002]
[1769759229525,2.81073432,2733.5,2732.6,0.002]
[1769759230825,2.81073432,2733.5,2731.8,2.83424499]
[1769759231127,0.29131343,2733.6,2731.8,2.83024499]
[1769759231128,2.81073432,2733.3,2731.8,2.83024499]
[1769759231345,0.29131343,2733.6,2731.8,2.83024499]
[1769759231520,2.81073432,2733.9,2731.9,2.83224499]
[1769759231695,2.81073432,2733.9,2731.8,8.81890091]
[1769759231696,0.92307343,2733.8,2732.1,2.83224499]
[1769759231896,3.73380775,2733.8,2732.3,2.83224499]
[1769759232508,0.92307343,2733.8,2732.3,2.83224499]
[1769759232703,2.81073432,2733.7,2732.3,2.83224499]
[1769759232904,0.92307343,2733.8,2732.3,2.83224499]
[1769759233116,2.81073432,2733.7,2732.5,2.83224499]
[1769759234009,2.81073432,2733.7,2732.5,2.83424499]
[1769759238920,2.81073432,2733.7,2732.5,2.83224499]
[1769759239098,2.81073432,2733.7,2732.5,2.83024499]
[1769759241534,2.76026405,2733.7,2732.7,2.83224499]
[1769759241735,2.75826405,2733.7,2732.8,0.2832245]
[1769759245042,2.75826405,2733.7,2732.8,3.11546949]
[1769759245242,0.001,2733.8,2732.8,3.11546949]
[1769759245803,2.81073432,2734.4,2732.9,2.83224499]
[1769759246028,2.81073432,2734.4,2733.1,2.83224499]
[1769759246816,2.81073432,2734.4,2733.2,2.83224499]
[1769759249544,2.81073432,2734.4,2733.0,0.31154695]
[1769759249734,2.81073432,2734.4,2733.0,3.14379194]
[1769759251417,2.81073432,2734.4,2733.0,0.31154695]
[1769759251733,2.81073432,2734.2,2732.9,2.83224499]
[1769759253544,2.81073432,2734.5,2732.9,2.83224499]
[1769759254922,2.81073432,2734.5,2733.0,2.83224499]
[1769759257940,0.91413586,2734.9,2733.0,2.83224499]
[1769759257941,2.79606724,2734.3,2733.0,2.83224499]
[1769759259428,2.79606724,2734.3,2733.1,2.7126383]
[1769759259624,2.79606724,2734.3,2733.2,0.34796383]
[1769759259828,2.79606724,2734.3,2732.7,0.769]
[1769759260133,2.79606724,2734.3,2732.8,2.7126383]
[1769759265967,2.79606724,2734.3,2733.0,2.7126383]
[1769759268562,0.001,2734.3,2733.0,2.7126383]
[1769759269433,2.79606724,2734.3,2733.0,2.7126383]
[1769759269634,0.001,2734.3,2733.2,2.7126383]
[1769759269846,2.79606724,2734.3,2733.2,2.7126383]
[1769759272166,2.79606724,2734.3,2733.1,0.002]
[1769759273270,2.79506724,2734.2,2733.1,0.002]
[1769759277591,2.79506724,2734.1,2733.1,0.002]
[1769759277743,3.71657396,2734.0,2733.1,0.002]
[1769759278093,2.79506724,2733.9,2733.1,0.002]
[1769759278966,0.92150672,2734.0,2733.1,2.7146383]
[1769759279167,2.79506724,2734.1,2733.1,2.7146383]
[1769759279685,6.42,2734.2,2733.1,2.7146383]
[1769759279906,2.79506724,2734.1,2733.1,0.002]
[1769759280452,6.42,2734.2,2733.1,2.7146383]
[1769759281467,2.79606724,2734.3,2733.1,2.7146383]
[1769759281776,2.79606724,2734.3,2733.3,2.7126383]
[1769759283377,0.001,2734.3,2733.3,2.7126383]
[1769759285550,0.001,2734.3,2733.7,2.7126383]
[1769759291080,2.8445115,2734.3,2733.2,0.27346383]
[1769759292098,2.8445115,2734.3,2733.2,3.13922146]
[1769759292252,2.8445115,2734.3,2733.3,0.39082215]
[1769759292452,2.8435115,2734.9,2733.4,2.86575763]
[1769759295790,2.8435115,2734.9,2733.4,2.86775763]
[1769759302074,2.9459115,2735.3,2733.4,2.86775763]
[1769759302494,2.8435115,2735.3,2733.7,2.86575763]
[1769759302792,2.8435115,2735.1,2733.9,2.86575763]
[1769759307882,2.8435115,2735.0,2733.4,2.86775763]
[1769759308084,2.8435115,2734.8,2733.4,2.86775763]
[1769759308396,2.8435115,2734.6,2733.4,2.86775763]
[1769759308584,2.8435115,2734.6,2733.6,0.002]
[1769759314197,2.8435115,2734.6,2733.6,2.86775763]
[1769759316986,2.66948051,2734.9,2733.6,2.86775763]
[1769759321124,2.66948051,2734.9,2733.9,2.79230268]
[1769759321309,2.66948051,2734.7,2733.9,2.79230268]
[1769759322415,0.26694805,2734.8,2733.9,2.79230268]
[1769759322619,2.66948051,2735.0,2733.9,2.79230268]
[1769759323485,2.66948051,2735.0,2733.8,0.002]
[1769759324218,2.66948051,2735.0,2733.8,2.79430268]
[1769759327519,2.96407166,2735.2,2733.9,2.79230268]
[1769759327818,2.66948051,2735.2,2733.9,2.79230268]
[1769759336609,2.66948051,2735.4,2734.2,2.79230268]
[1769759348267,6.42,2735.5,2734.2,2.79230268]
[1769759348550,6.42,2735.5,2734.4,2.87241352]
[1769759348722,9.24639237,2735.5,2734.4,2.87241352]
[1769759350449,0.41523618,2736.0,2735.3,2.87241352]
[1769759351146,2.82639237,2737.1,2735.6,2.87241352]
[1769759351346,0.19065547,2737.3,2735.5,6.58343178]
[1769759351347,2.82639237,2736.9,2735.8,2.87241352]
[1769759351646,0.28263924,2737.0,2735.8,2.87241352]
[1769759352149,0.28263924,2737.0,2734.7,2.87241352]
[1769759352150,2.92879237,2736.7,2734.7,2.87241352]
[1769759352350,2.82639237,2736.0,2734.7,2.87241352]
[1769759352551,2.09101235,2736.6,2735.1,2.87241352]
[1769759352552,2.82639237,2736.4,2735.1,2.87241352]
[1769759353123,2.82639237,2736.8,2735.1,2.87241352]
[1769759353645,2.82639237,2736.6,2735.2,2.87241352]
[1769759353831,2.92879237,2736.4,2734.9,2.87241352]
[1769759354031,2.82639237,2736.2,2734.9,2.87241352]
[1769759354351,3.39328397,2736.2,2734.9,2.87241352]
[1769759354654,2.82639237,2736.0,2734.9,2.87241352]
[1769759354851,0.767,2736.3,2734.9,2.87241352]
[1769759354852,2.82639237,2736.3,2734.9,2.87241352]
[1769759355051,0.5668916,2736.1,2734.9,2.87241352]
[1769759355252,0.5668916,2736.1,2735.0,3.15965487]
[1769759355453,0.1024,2736.3,2735.0,3.15965487]
[1769759355659,2.92879237,2736.3,2735.0,3.15965487]
[1769759355824,2.92879237,2736.3,2735.0,2.87241352]
[1769759356231,2.82639237,2736.5,2735.1,2.87241352]
[1769759356854,2.82639237,2736.8,2735.4,2.87241352]
[1769759357852,2.82639237,2736.7,2735.4,2.87241352]
[1769759358334,2.82639237,2736.9,2735.4,2.87241352]
[1769759358655,3.07284936,2736.8,2735.6,2.87241352]
[1769759360267,0.24645699,2736.8,2735.6,2.87241352]
[1769759360436,3.10903161,2737.0,2735.6,2.87241352]
[1769759361528,0.28263924,2737.0,2735.6,2.87241352]
[1769759362367,0.28263924,2737.0,2735.7,2.87241352]
[1769759362567,2.82639237,2737.2,2735.7,2.87241352]
[1769759364868,2.82639237,2737.4,2735.7,2.87241352]
[1769759365771,2.82639237,2737.4,2735.8,2.87241352]
[1769759366938,6.33933002,2737.6,2735.8,2.87241352]
[1769759367148,9.16572239,2737.6,2735.8,2.87241352]
[1769759367350,9.16572239,2737.6,2735.7,14.5]
[1769759367351,0.91657224,2737.5,2736.0,2.87241352]
[1769759367883,2.82639237,2737.6,2736.0,2.87241352]
[1769759368575,0.38402809,2737.8,2736.0,2.87241352]
[1769759368774,3.21042046,2737.8,2736.0,2.87241352]
[1769759370281,3.3278673,2737.7,2736.0,2.87241352]
[1769759370578,2.82639237,2737.3,2736.0,2.87241352]
[1769759370805,2.82639237,2737.1,2736.1,3.15965487]
[1769759371079,0.28273924,2737.2,2736.1,3.15965487]
[1769759371272,2.82739237,2737.4,2736.1,3.15965487]
[1769759371470,0.001,2737.4,2736.1,3.15965487]
[1769759374554,0.38402809,2737.8,2736.3,2.87241352]
[1769759375262,0.38402809,2737.8,2736.4,2.87241352]
[1769759375586,0.38402809,2737.8,2736.6,2.87241352]
[1769759375808,0.38402809,2737.8,2736.8,2.79610235]
[1769759376292,0.38402809,2737.8,2736.8,17.29610235]
[1769759376495,0.38402809,2737.8,2736.9,2.97304541]
[1769759376679,2.82639237,2738.7,2737.0,2.97304541]
[1769759377794,2.82639237,2738.7,2737.2,2.97304541]
[1769759377960,3.10903161,2738.7,2737.4,2.97304541]
[1769759378302,0.28263924,2738.7,2737.4,2.97304541]
[1769759378497,2.79346814,2739.0,2737.4,2.97304541]
[1769759382767,2.79346814,2739.3,2737.4,2.97304541]
[1769759383214,0.001,2738.5,2737.4,2.97304541]
[1769759383729,0.001,2738.5,2737.9,2.97304541]
[1769759386673,2.79346814,2739.2,2737.9,2.97304541]
[1769759386878,2.79346814,2740.0,2738.7,2.97304541]
[1769759388501,2.79346814,2740.2,2739.0,2.97304541]
[1769759388707,0.349061,2740.3,2739.0,2.97304541]
[1769759389775,0.349061,2740.3,2739.2,2.97304541]
[1769759390098,0.66331391,2740.3,2739.4,2.97304541]
[1769759391010,0.349061,2740.3,2739.4,2.97304541]
[1769759394717,2.79346814,2740.0,2737.9,2.97304541]
[1769759394878,2.79346814,2739.4,2737.9,2.97304541]
[1769759398100,3.70599897,2739.7,2737.9,2.97304541]
[1769759398404,2.79346814,2739.6,2737.9,2.97304541]
[1769759398709,3.16406804,2739.5,2738.1,2.97304541]
[1769759400389,0.3705999,2739.5,2738.1,2.97304541]
[1769759400709,2.79346814,2739.6,2738.1,2.97304541]
[1769759404179,2.79346814,2739.9,2738.1,2.97304541]
[1769759405038,2.79346814,2739.9,2738.3,2.97304541]
[1769759408389,2.79346814,2739.9,2738.3,2.97504541]
[1769759414501,3.18001444,2740.1,2738.3,2.97504541]
[1769759414821,0.001,2740.1,2738.6,2.94411957]
[1769759417430,0.001,2740.1,2738.7,2.94411957]
[1769759417628,0.001,2740.1,2739.2,2.94411957]
[1769759418542,3.17901444,2741.2,2739.6,2.94411957]
[1769759418703,3.17901444,2741.2,2739.7,0.94987804]
[1769759418904,3.62540604,2741.2,2739.4,3.70911957]
[1769759419219,3.17901444,2741.2,2739.6,2.94411957]
[1769759420644,3.17901444,2741.4,2739.6,2.94411957]
[1769759420948,3.17901444,2741.4,2739.7,2.94411957]
[1769759421246,0.001,2741.0,2739.7,2.94411957]
[1769759421425,0.001,2741.0,2739.9,2.94411957]
[1769759421851,3.17901444,2742.2,2740.0,2.94411957]
[1769759422340,3.17901444,2742.2,2740.2,2.94411957]
[1769759422557,0.31135193,2742.4,2740.4,2.94411957]
[1769759422713,3.52805108,2742.3,2740.6,2.94411957]
[1769759423428,0.31135193,2742.4,2740.6,2.94411957]
[1769759423748,0.31135193,2742.4,2740.7,2.94411957]
[1769759424049,3.49036637,2742.4,2740.7,2.94411957]
[1769759425014,3.17901444,2742.3,2740.7,2.94411957]
[1769759431164,0.31135193,2742.4,2740.7,2.94411957]
[1769759431371,0.31135193,2742.4,2740.9,2.94411957]
[1769759433264,3.49036637,2742.4,2740.9,2.94411957]
[1769759433626,0.001,2742.1,2740.9,2.94411957]
[1769759438158,2.97829059,2742.1,2740.9,2.94411957]
[1769759438954,2.97829059,2742.1,2740.8,0.29441196]
[1769759439163,2.97729059,2741.9,2740.8,3.44713868]
[1769759440754,2.97729059,2741.9,2740.5,3.45737868]
[1769759442028,0.29782906,2742.0,2740.5,3.45737868]
[1769759442269,0.001,2742.1,2740.6,3.15272672]
[1769759442574,0.001,2742.1,2740.7,3.15272672]
[1769759445996,0.001,2742.1,2740.7,3.15472672]
[1769759451874,0.001,2742.1,2741.0,3.15272672]
[1769759452071,1.01360258,2743.7,2741.3,3.15272672]
[1769759452269,3.64427725,2744.1,2741.3,3.15272672]
[1769759452270,2.97729059,2743.4,2741.5,3.15272672]
[1769759455204,0.19048812,2743.5,2741.5,3.15272672]
[1769759455205,2.97729059,2743.3,2741.5,3.15272672]
[1769759458687,2.97729059,2743.3,2741.7,3.15272672]
[1769759458897,0.91112809,2743.9,2741.7,3.15272672]
[1769759458898,2.97829059,2743.1,2741.7,3.15272672]
[1769759459607,2.97829059,2743.1,2741.8,14.5]
[1769759459807,2.97729059,2742.9,2741.9,1.76527267]
[1769759460477,2.97729059,2742.9,2742.0,3.15272672]
[1769759460677,0.001,2743.1,2742.0,3.15272672]
[1769759460940,2.97829059,2743.1,2742.0,3.15272672]
[1769759461491,2.97729059,2744.1,2742.1,3.91772672]
[1769759461791,2.97729059,2743.9,2742.2,1.17760606]
[1769759462099,2.97729059,2743.9,2742.0,3.15272672]
[1769759463310,2.97729059,2743.9,2742.1,3.15272672]
[1769759463487,2.97729059,2744.7,2742.1,3.15272672]
[1769759463688,2.97729059,2744.5,2742.1,3.15272672]
[1769759463895,2.97729059,2744.3,2742.3,3.15272672]
[1769759465212,2.97729059,2744.3,2742.5,3.15272672]
[1769759466120,2.97729059,2744.3,2742.7,3.07693464]
[1769759466290,2.97729059,2744.3,2742.6,17.57693464]
[1769759466489,2.97729059,2744.3,2742.6,3.07693464]
[1769759466709,3.0334382,2744.1,2742.7,0.30769346]
[1769759466915,3.0334382,2744.1,2742.7,3.3846281]
[1769759467426,3.0334382,2744.4,2742.8,3.07693464]
[1769759467887,3.0334382,2744.4,2742.9,14.5]
[1769759468085,3.0334382,2744.4,2743.1,3.07693464]
[1769759469130,3.0334382,2745.1,2743.3,3.07693464]
[1769759469515,3.0334382,2745.1,2743.5,3.07693464]
[1769759470221,0.0191338,2745.2,2743.5,3.07693464]
[1769759470519,0.0191338,2745.2,2743.7,3.07693464]
[1769759470999,3.0334382,2745.1,2743.7,3.07693464]
[1769759471702,0.0191338,2745.2,2743.6,1.75769346]
[1769759471703,0.001,2744.2,2743.6,1.75769346]
[1769759472514,0.001,2744.2,2743.1,3.07693464]
[1769759473198,3.0344382,2744.2,2742.7,3.3846281]
[1769759473394,3.0344382,2744.2,2742.4,3.07693464]
[1769759473626,3.0344382,2744.2,2742.5,0.766]
[1769759474091,3.0344382,2744.2,2742.5,0.002]
[1769759474833,3.0334382,2744.1,2742.5,0.002]
[1769759474998,3.0334382,2743.9,2742.5,0.002]
[1769759475198,3.0334382,2743.7,2742.5,0.002]
[1769759476756,3.0334382,2743.7,2741.1,0.91203995]
[1769759476757,3.0334382,2743.1,2741.1,3.07693464]
[1769759477022,3.0334382,2742.9,2741.1,3.07693464]
[1769759477227,3.0334382,2742.9,2740.9,0.002]
[1769759477228,3.0334382,2742.7,2740.9,0.002]
[1769759477427,0.1024,2742.8,2741.0,3.3848281]
[1769759477428,0.31358382,2742.6,2741.0,3.3848281]
[1769759477613,3.0334382,2742.8,2741.0,3.3848281]
[1769759479330,3.9479488,2743.8,2741.2,3.07693464]
[1769759479331,3.0334382,2743.1,2741.2,3.07693464]
[1769759479828,3.0334382,2743.1,2741.3,3.84093464]
[1769759480018,3.0334382,2743.1,2741.5,3.07693464]
[1769759481612,3.0334382,2743.1,2741.5,3.84093464]
[1769759481815,3.0334382,2742.9,2741.5,5.6750281]
[1769759482002,3.0334382,2742.9,2741.6,3.07693464]
[1769759482527,0.30334382,2743.0,2741.6,3.07693464]
[1769759482730,3.33678202,2743.0,2741.6,3.07693464]
[1769759482906,3.0334382,2743.0,2741.6,3.84093464]
[1769759484800,3.0334382,2743.0,2741.5,0.002]
[1769759485005,3.0344382,2742.9,2741.5,3.07893464]
[1769759485231,0.30344382,2742.8,2741.5,3.07893464]
[1769759485614,0.001,2742.9,2741.5,3.07893464]
[1769759487716,0.001,2742.9,2741.7,3.07693464]
[1769759490141,0.001,2742.9,2741.8,3.07693464]
[1769759490339,3.0334382,2744.2,2742.1,3.07693464]
[1769759490542,0.30334382,2744.1,2742.3,3.07693464]
[1769759491038,0.30334382,2744.1,2742.4,3.84193464]
[1769759491435,3.33678202,2744.1,2742.6,3.07693464]
[1769759492341,3.33678202,2744.1,2742.8,3.07693464]
[1769759493846,3.0334382,2745.0,2742.8,3.07693464]
[1769759494020,3.0334382,2745.0,2742.9,3.07693464]
[1769759494343,6.33933002,2745.1,2742.8,3.84093464]
[1769759494344,3.0334382,2744.8,2742.8,3.84093464]
[1769759494644,3.0334382,2744.6,2743.0,3.07693464]
[1769759494943,3.0334382,2744.6,2743.1,0.764]
[1769759495121,3.0334382,2744.6,2742.7,3.07693464]
[1769759495322,3.0334382,2744.4,2742.8,0.764]
[1769759495536,3.0334382,2744.3,2742.7,3.07693464]
[1769759495844,2.99919099,2744.1,2742.7,3.07693464]
[1769759496049,2.99919099,2744.1,2742.8,0.764]
[1769759496918,2.99919099,2744.1,2742.9,3.04398655]
[1769759497328,0.39586336,2744.7,2742.9,3.04398655]
[1769759497329,3.60254288,2744.7,2742.9,3.04398655]
[1769759497531,0.39586336,2744.7,2742.9,3.04398655]
[1769759497815,3.20667952,2745.0,2743.1,3.04398655]
[1769759498448,0.91075436,2745.0,2743.1,3.04398655]
[1769759498647,3.20667952,2744.9,2743.1,3.04398655]
[1769759498816,3.20667952,2744.9,2743.2,14.5]
[1769759499022,3.20667952,2744.9,2743.3,3.04398655]
[1769759499319,3.52734747,2744.8,2743.4,3.04398655]
[1769759499731,0.001,2744.4,2743.4,3.04398655]
[1769759500544,3.20767952,2744.4,2743.0,3.80798655]
[1769759500745,3.20767952,2744.4,2743.1,0.764]
[1769759500956,3.20767952,2744.4,2742.8,0.764]
[1769759501121,3.20667952,2744.2,2742.8,0.764]